fUST/lending_fUST_20240202
["ID","MTS","AMOUNT","RATE_DAILY","PERIOD"]
[313172487,1706875839614,-500.0,0.00027397,2]
[313172488,1706875839623,-500.0,0.00027397,2]
[313172489,1706875839633,-500.0,0.00027397,2]
[313172490,1706875839642,-500.0,0.00027397,2]
[313172491,1706875839651,-572.23514357,0.00027397,2]
[313172492,1706875839660,-500.0,0.00027397,2]
[313172493,1706875839670,-624.87350951,0.00027397,2]
[313172494,1706875839681,-500.0,0.00027397,2]
[313172495,1706875839690,-500.0,0.00027397,2]
[313172496,1706875839699,-500.0,0.00027397,2]
[313172497,1706875839709,-614.74,0.00027397,2]
[313172498,1706875839718,-500.0,0.00027397,2]
[313172499,1706875839727,-500.0,0.00027397,2]
[313172500,1706875839737,-500.0,0.00027397,2]
[313172501,1706875839746,-500.0,0.00027397,2]
[313172502,1706875839755,-500.0,0.00027397,2]
[313172503,1706875839765,-500.0,0.00027397,2]
[313172504,1706875839774,-500.0,0.00027397,2]
[313172505,1706875839786,-518.85162971,0.00027397,2]
[313172506,1706875839795,-500.0,0.00027397,2]
[313172507,1706875839804,-500.0,0.00027397,2]
[313172508,1706875839813,-1999.6,0.00027397,2]
[313172509,1706875839823,-500.0,0.00027397,2]
[313172510,1706875839832,-500.0,0.00027397,2]
[313172511,1706875839842,-500.0,0.00027397,2]
[313172512,1706875839851,-500.0,0.00027397,2]
[313172513,1706875839863,-500.0,0.00027397,2]
[313172514,1706875839874,-500.0,0.00027397,2]
[313172515,1706875839885,-869.2,0.00027397,2]
[313172516,1706875839896,-504.27381749,0.00027397,2]
[313172517,1706875839906,-308.2147229,0.00027397,2]
[313172518,1706875839915,-435.09847913,0.00027397,2]
[313172519,1706875839925,-956.77,0.00027397,2]
[313172520,1706875839935,-500.0,0.00027397,2]
[313172521,1706875839947,-500.0,0.00027397,2]
[313172522,1706875839957,-554.77,0.00027397,2]
[313172523,1706875839968,-4545.43,0.00027397,2]
[313172524,1706875839979,-500.0,0.00027397,2]
[313172525,1706875839988,-954.99,0.00027397,2]
[313172526,1706875839998,-500.0,0.00027397,2]
[313172527,1706875840008,-5664.28,0.00027397,2]
[313172528,1706875840018,-333.97015587,0.00027397,2]
[313172529,1706875840028,-500.0,0.00027397,2]
[313172530,1706875840037,-500.0,0.00027397,2]
[313172531,1706875840048,-500.0,0.00027397,2]
[313172532,1706875840058,-500.0,0.00027397,2]
[313172533,1706875840067,-582.77363345,0.00027397,2]
[313172534,1706875840076,-500.0,0.00027397,2]
[313172535,1706875840085,-528.14,0.00027397,2]
[313172536,1706875840094,-786.19,0.00027397,2]
[313172537,1706875840104,-500.0,0.00027397,2]
[313172538,1706875840114,-500.0,0.00027397,2]
[313172539,1706875840123,-500.0,0.00027397,2]
[313172540,1706875840134,-500.0,0.00027397,2]
[313172541,1706875840145,-4704.53,0.00027397,2]
[313172542,1706875840155,-500.0,0.00027397,2]
[313172543,1706875840166,-500.0,0.00027397,2]
[313172544,1706875840175,-500.0,0.00027397,2]
[313172545,1706875840184,-500.0,0.00027671,2]
[313172546,1706875840193,-500.0,0.00027671,2]
[313172547,1706875840203,-500.0,0.00027671,2]
[313172548,1706875840211,-500.0,0.00027671,2]
[313172549,1706875840220,-779.61,0.00027671,2]
[313172550,1706875840229,-500.0,0.00027671,2]
[313172551,1706875840238,-500.0,0.00027671,2]
[313172552,1706875840247,-518.69,0.00027671,2]
[313172553,1706875840255,-358.43,0.00027671,2]
[313172554,1706875840264,-216.77,0.00027671,2]
[313172555,1706875840274,-500.0,0.00027671,2]
[313172556,1706875840283,-500.0,0.00027671,2]
[313172557,1706875840292,-264.13,0.00027671,2]
[313172558,1706875840300,-500.0,0.00027671,2]
[313172559,1706875840309,-431.05,0.00027671,2]
[313172560,1706875840318,-1000.0,0.00027671,2]
[313172561,1706875840327,-564.33,0.00027671,2]
[313172562,1706875840337,-500.0,0.00027671,2]
[313172563,1706875840345,-500.0,0.00027671,2]
[313172564,1706875840356,-500.0,0.00027671,2]
[313172565,1706875840365,-500.0,0.00027671,2]
[313172566,1706875840375,-614.74,0.00027671,2]
[313172567,1706875840385,-500.0,0.00027671,2]
[313172568,1706875840395,-219.85,0.00027671,2]
[313172569,1706875840405,-170.57,0.00027671,2]
[313172570,1706875840413,-1999.6,0.00027671,2]
[313172571,1706875840422,-500.0,0.00027671,2]
[313172572,1706875840431,-500.0,0.00027671,2]
[313172573,1706875840440,-869.2,0.00027671,2]
[313172574,1706875840448,-840.38333607,0.00027671,2]
[313172575,1706875840496,-116.38666393,0.00027671,2]
[313172576,1706875840505,-500.0,0.00027671,2]
[313172577,1706875840514,-554.77,0.00027671,2]
[313172578,1706875840523,-1612.10333607,0.00027671,2]
[313172587,1706875841768,-500.0,0.00027397,2]
[313172588,1706875841780,-330.41779744,0.00027671,2]
[313172589,1706875841822,-869.127917,0.00027671,2]
[313172590,1706875841834,-1733.78094949,0.00027671,2]
[313172591,1706875841843,-500.0,0.00027671,2]
[313172592,1706875841852,-954.99,0.00027671,2]
[313172593,1706875841862,-16.54088833,0.00027671,2]
[313172594,1706875841874,-258.08911167,0.00027671,2]
[313172595,1706875841885,-2650.09766888,0.00027671,2]
[313172596,1706875841897,-2465.74508165,0.00027671,2]
[313172597,1706875841912,-548.43724947,0.00027671,2]
[313172598,1706875841924,-500.0,0.00027671,2]
[313172599,1706875841934,-500.0,0.00027671,2]
[313172600,1706875841944,-364.97,0.00027671,2]
[313172601,1706875841955,-528.14,0.00027671,2]
[313172602,1706875841964,-786.19,0.00027671,2]
[313172603,1706875841973,-500.0,0.00027671,2]
[313172604,1706875841983,-4704.53,0.00027671,2]
[313172605,1706875841992,-180.35,0.00027671,2]
[313172606,1706875842002,-6103.88175663,0.00027718,2]
[313172607,1706875842010,-151.71831557,0.00027944,2]
[313172608,1706875842019,-500.0,0.00027945,2]
[313172609,1706875842028,-500.0,0.00027945,2]
[313172610,1706875842038,-500.0,0.00027945,2]
[313172611,1706875842047,-779.61,0.00027945,2]
[313172612,1706875842059,-500.0,0.00027945,2]
[313172613,1706875842068,-518.69,0.00027945,2]
[313172614,1706875842078,-500.0,0.00027945,2]
[313172615,1706875842088,-500.0,0.00027945,2]
[313172616,1706875842098,-500.0,0.00027945,2]
[313172617,1706875842108,-1000.0,0.00027945,2]
[313172618,1706875842118,-225.65,0.00027945,2]
[313172619,1706875842128,-500.0,0.00027945,2]
[313172620,1706875842138,-500.0,0.00027945,2]
[313172621,1706875842149,-500.0,0.00027945,2]
[313172622,1706875842159,-614.74,0.00027945,2]
[313172623,1706875842169,-352.35,0.00027945,2]
[313172624,1706875842178,-219.612116,0.00027945,2]
[313172625,1706875842187,-151.0,0.00027945,2]
[313172626,1706875842196,-1999.6,0.00027945,2]
[313172627,1706875842204,-500.0,0.00027945,2]
[313172628,1706875842213,-500.0,0.00027945,2]
[313172629,1706875842222,-869.2,0.00027945,2]
[313172630,1706875842231,-956.77,0.00027945,2]
[313172631,1706875842240,-500.0,0.00027945,2]
[313172632,1706875842248,-554.77,0.00027945,2]
[313172633,1706875842259,-4545.43,0.00027945,2]
[313172634,1706875842269,-500.0,0.00027945,2]
[313172635,1706875842278,-954.99,0.00027945,2]
[313172636,1706875842287,-4388.89487233,0.00027945,2]
[313172648,1706875843649,-500.0,0.00027397,2]
[313172649,1706875843659,-1275.38512767,0.00027945,2]
[313172650,1706875843668,-500.0,0.00027945,2]
[313172651,1706875843676,-500.0,0.00027945,2]
[313172652,1706875843686,-528.14,0.00027945,2]
[313172653,1706875843696,-786.19,0.00027945,2]
[313172654,1706875843706,-500.0,0.00027945,2]
[313172655,1706875843715,-4704.53,0.00027945,2]
[313172656,1706875843724,-15757.35857677,0.00027998,2]
[313172657,1706875843735,-653.86563292,0.00027998,2]
[313172658,1706875843746,-268.24199987,0.00027998,2]
[313172659,1706875843757,-4222.8618608,0.00027998,2]
[313172660,1706875843766,-623.62379075,0.00027998,2]
[313172661,1706875843780,-1481.68952505,0.00027998,2]
[313172662,1706875843790,-1247.4787946,0.00027998,2]
[313172664,1706875843799,-173.76333142,0.00027998,2]
[313172666,1706875843808,-155.2275081,0.00027998,2]
[313172668,1706875843816,-426.66199522,0.00027998,2]
[313172669,1706875843826,-164.76988286,0.00027998,2]
[313172670,1706875843835,-522.70965873,0.00027998,2]
[313172671,1706875843844,-384.64697665,0.00027998,2]
[313172672,1706875843854,-21.15990852,0.00027998,2]
[313172673,1706875843867,-3953.97514399,0.00027998,2]
[313172674,1706875843877,-151.0,0.00027998,2]
[313172675,1706875843885,-230.428261,0.00027998,2]
[313172676,1706875843894,-230.428261,0.00027998,2]
[313172677,1706875843903,-151.0,0.00027998,2]
[313172678,1706875843913,-500.0,0.00027998,2]
[313172679,1706875843922,-500.0,0.00027998,2]
[313172680,1706875843931,-500.0,0.00027998,2]
[313172681,1706875843940,-500.0,0.00027998,2]
[313172682,1706875843948,-500.0,0.00027998,2]
[313172683,1706875843958,-500.0,0.00027998,2]
[313172684,1706875843967,-500.0,0.00027998,2]
[313172685,1706875843976,-500.0,0.00027998,2]
[313172686,1706875843985,-500.0,0.00027998,2]
[313172687,1706875843994,-500.0,0.00027998,2]
[313172688,1706875844004,-500.0,0.00027998,2]
[313172689,1706875844013,-500.0,0.00027998,2]
[313172690,1706875844022,-500.0,0.00027998,2]
[313172691,1706875844032,-170.18973119,0.00027998,2]
[313172692,1706875844040,-500.0,0.00027998,2]
[313172693,1706875844051,-500.0,0.00027998,2]
[313172694,1706875844061,-500.0,0.00027998,2]
[313172695,1706875844071,-500.0,0.00027998,2]
[313172696,1706875844081,-500.0,0.00027998,2]
[313172697,1706875844090,-500.0,0.00027998,2]
[313172698,1706875844099,-500.0,0.00027998,2]
[313172699,1706875844109,-2493.12076441,0.00027999,2]
[313172700,1706875844117,-298.68511552,0.00027999,2]
[313172701,1706875844127,-176.8932455,0.00027999,2]
[313172702,1706875844136,-500.0,0.00027999,2]
[313172703,1706875844144,-519.11111261,0.00027999,2]
[313172704,1706875844153,-500.0,0.00027999,2]
[313172705,1706875844163,-500.0,0.00027999,2]
[313172706,1706875844173,-500.0,0.00027999,2]
[313172707,1706875844182,-500.0,0.00027999,2]
[313172708,1706875844191,-500.0,0.00027999,2]
[313172709,1706875844201,-400.18074032,0.00027999,2]
[313172710,1706875844291,-500.0,0.00027999,2]
[313172711,1706875844300,-500.0,0.00027999,2]
[313172712,1706875844310,-500.0,0.00027999,2]
[313172713,1706875844319,-450.0,0.00027999,2]
[313172714,1706875844328,-160.16296506,0.00028,3]
[313172715,1706875844336,-2560.87921795,0.00028,20]
[313172736,1706876125559,151.01963255,0.00028925,120]
[313172740,1706876414611,2000.0,0.00029,30]
[313172749,1706876652801,151.01812217,0.00029079,120]
[313172779,1706877012042,151.01812217,0.000286,120]
[313172831,1706877037963,-1016.95893048,0.00023103,2]
[313172833,1706877037972,-323.68814175,0.00023103,2]
[313172834,1706877037982,-512.69221514,0.00023108,2]
[313172835,1706877037991,-2933.89205602,0.00024162,2]
[313172836,1706877038020,-253.03416128,0.00024162,2]
[313172841,1706877040981,-325.98905667,0.00023102,2]
[313172842,1706877040993,-691.28630344,0.00023102,2]
[313172843,1706877041002,-5195.7276156,0.00024162,2]
[313172844,1706877041014,-10466.75062327,0.00024162,2]
[313172851,1706877043055,-6050.59554383,0.00024162,2]
[313172852,1706877043065,-168.99206226,0.0002493,2]
[313172853,1706877043074,-165.691405,0.0002503,2]
[313172854,1706877043084,-194.40116681,0.00025111,2]
[313172855,1706877043095,-1485.77477947,0.00025111,2]
[313172878,1706877045981,-319.82405372,0.00025111,2]
[313172879,1706877045991,-2000.0,0.00025111,2]
[313172880,1706877046002,-155.02325349,0.00025198,4]
[313172881,1706877046012,-1040.8718319,0.00025268,2]
[313172882,1706877046021,-16033.31772047,0.000268,2]
[313173014,1706878238091,-323.68814175,0.00023065,2]
[313173015,1706878238101,-3492.24028975,0.00023066,2]
[313173016,1706878238110,-1016.95893048,0.00023067,2]
[313173017,1706878238119,-1017.27536011,0.00023067,2]
[313173018,1706878238129,-264.14942563,0.00023068,2]
[313173019,1706878238138,-3535.99813566,0.00023108,2]
[313173020,1706878238147,-24900.0,0.00023749,2]
[313173021,1706878238156,-200.0,0.00026123,15]
[313173022,1706878238166,-788.28034409,0.000268,2]
[313173023,1706878238175,-1829.60430493,0.000268,2]
[313173025,1706878238184,-621.90621018,0.000268,2]
[313173026,1706878238194,-2088.61407986,0.000268,2]
[313173027,1706878238203,-312.87729749,0.000268,2]
[313173028,1706878238213,-300.0,0.000268,2]
[313173029,1706878238222,-1469.10387267,0.000268,2]
[313173030,1706878238232,-155.01860223,0.000268,2]
[313173031,1706878238242,-35629.48544383,0.000268,2]
[313173032,1706878238251,-280.25684936,0.000268,2]
[313173033,1706878238262,-233.37205177,0.00027,2]
[313173034,1706878238272,-358.79902524,0.00027,2]
[313173035,1706878238281,-1285.31177925,0.00027395,2]
[313173036,1706878238291,-500.0,0.00027395,2]
[313173037,1706878238300,-251.55409728,0.00027397,2]
[313173038,1706878238309,-500.0,0.00027397,2]
[313173039,1706878238318,-500.0,0.00027397,2]
[313173040,1706878238327,-347.85204275,0.00027397,2]
[313173041,1706878238337,-500.0,0.00027397,2]
[313173042,1706878238347,-500.0,0.00027397,2]
[313173043,1706878238356,-500.0,0.00027397,2]
[313173044,1706878238366,-500.0,0.00027397,2]
[313173045,1706878238375,-500.0,0.00027397,2]
[313173046,1706878238385,-401.89506063,0.00027397,2]
[313173047,1706878238394,-500.0,0.00027397,2]
[313173048,1706878238404,-500.0,0.00027397,2]
[313173049,1706878238413,-610.81401891,0.00027397,2]
[313173050,1706878238422,-501.01811761,0.00027397,2]
[313173051,1706878238431,-500.0,0.00027397,2]
[313173052,1706878238441,-500.0,0.00027397,2]
[313173053,1706878238450,-507.03839547,0.00027397,2]
[313173054,1706878238459,-500.0,0.00027397,2]
[313173055,1706878238469,-277.16826861,0.00027397,2]
[313173056,1706878238479,-507.21340019,0.00027397,2]
[313173057,1706878238487,-514.77777353,0.00027397,2]
[313173058,1706878238497,-502.96663282,0.00027397,2]
[313173059,1706878238507,-524.00912689,0.00027397,2]
[313173060,1706878238518,-500.0,0.00027397,2]
[313173061,1706878238529,-500.0,0.00027397,2]
[313173062,1706878238539,-500.0,0.00027397,2]
[313173063,1706878238548,-500.0,0.00027397,2]
[313173064,1706878238557,-500.0,0.00027397,2]
[313173065,1706878238567,-193.41239296,0.00027397,2]
[313173066,1706878238576,-500.0,0.00027397,2]
[313173067,1706878238585,-500.0,0.00027397,2]
[313173068,1706878238594,-500.0,0.00027397,2]
[313173069,1706878238604,-500.0,0.00027397,2]
[313173070,1706878238614,-500.0,0.00027397,2]
[313173071,1706878238624,-500.0,0.00027397,2]
[313173072,1706878238633,-500.0,0.00027397,2]
[313173073,1706878238642,-500.0,0.00027397,2]
[313173074,1706878238651,-500.0,0.00027397,2]
[313173075,1706878238661,-500.0,0.00027397,2]
[313173076,1706878238670,-500.0,0.00027397,2]
[313173077,1706878238679,-500.0,0.00027397,2]
[313173078,1706878238689,-500.0,0.00027397,2]
[313173079,1706878238698,-500.0,0.00027397,2]
[313173080,1706878238708,-500.0,0.00027397,2]
[313173081,1706878238717,-736.25,0.00027397,2]
[313173082,1706878238727,-500.0,0.00027397,2]
[313173083,1706878238736,-500.0,0.00027397,2]
[313173084,1706878238745,-500.0,0.00027397,2]
[313173085,1706878238754,-500.0,0.00027397,2]
[313173086,1706878238763,-500.0,0.00027397,2]
[313173087,1706878238773,-602.18874277,0.00027397,2]
[313173088,1706878238781,-500.0,0.00027397,2]
[313173089,1706878238790,-500.0,0.00027397,2]
[313173090,1706878238799,-500.0,0.00027397,2]
[313173091,1706878238809,-500.0,0.00027397,2]
[313173092,1706878238818,-500.0,0.00027397,2]
[313173093,1706878238827,-500.0,0.00027397,2]
[313173094,1706878238836,-500.0,0.00027397,2]
[313173095,1706878238845,-500.0,0.00027397,2]
[313173096,1706878238855,-500.0,0.00027397,2]
[313173097,1706878238864,-500.0,0.00027397,2]
[313173098,1706878238874,-500.0,0.00027397,2]
[313173099,1706878238885,-500.0,0.00027397,2]
[313173100,1706878238894,-500.0,0.00027397,2]
[313173101,1706878238904,-500.0,0.00027397,2]
[313173102,1706878238913,-500.0,0.00027397,2]
[313173103,1706878238922,-500.0,0.00027397,2]
[313173104,1706878238932,-500.0,0.00027397,2]
[313173105,1706878238943,-500.0,0.00027397,2]
[313173106,1706878238953,-500.0,0.00027397,2]
[313173107,1706878238962,-500.0,0.00027397,2]
[313173108,1706878238973,-500.0,0.00027397,2]
[313173109,1706878238984,-500.0,0.00027397,2]
[313173110,1706878238993,-500.0,0.00027397,2]
[313173111,1706878239003,-500.0,0.00027397,2]
[313173112,1706878239013,-500.0,0.00027397,2]
[313173113,1706878239022,-155.0,0.00027397,2]
[313173114,1706878239031,-500.0,0.00027397,2]
[313173115,1706878239040,-500.0,0.00027397,2]
[313173116,1706878239049,-749.59,0.00027397,2]
[313173117,1706878239059,-500.0,0.00027397,2]
[313173118,1706878239068,-500.0,0.00027397,2]
[313173119,1706878239077,-500.0,0.00027397,2]
[313173120,1706878239086,-500.0,0.00027397,2]
[313173121,1706878239095,-500.32,0.00027397,2]
[313173122,1706878239105,-500.0,0.00027397,2]
[313173123,1706878239115,-500.0,0.00027397,2]
[313173124,1706878239125,-500.0,0.00027397,2]
[313173125,1706878239135,-500.0,0.00027397,2]
[313173126,1706878239145,-761.07,0.00027397,2]
[313173127,1706878239155,-500.0,0.00027397,2]
[313173128,1706878239166,-500.0,0.00027397,2]
[313173129,1706878239176,-500.0,0.00027397,2]
[313173130,1706878239185,-500.0,0.00027397,2]
[313173131,1706878239195,-500.0,0.00027397,2]
[313173132,1706878239206,-500.0,0.00027397,2]
[313173133,1706878239216,-500.0,0.00027397,2]
[313173134,1706878239225,-500.0,0.00027397,2]
[313173135,1706878239235,-500.0,0.00027397,2]
[313173136,1706878239245,-500.0,0.00027397,2]
[313173137,1706878239255,-500.0,0.00027397,2]
[313173138,1706878239266,-219.10688335,0.00027397,2]
[313173139,1706878239275,-144.61035702,0.00027397,2]
[313173140,1706878239289,-355.38964298,0.00027397,2]
[313173141,1706878239299,-2428.93,0.00027397,2]
[313173142,1706878239309,-980.53,0.00027397,2]
[313173143,1706878239318,-500.0,0.00027397,2]
[313173144,1706878239328,-500.0,0.00027397,2]
[313173145,1706878239337,-500.0,0.00027397,2]
[313173146,1706878239346,-168.29099612,0.00027397,2]
[313173161,1706878241221,-830.43900388,0.00027397,2]
[313173162,1706878241231,-500.0,0.00027397,2]
[313173163,1706878241240,-500.0,0.00027397,2]
[313173164,1706878241250,-1056.19,0.00027397,2]
[313173165,1706878241259,-500.0,0.00027397,2]
[313173166,1706878241269,-500.0,0.00027397,2]
[313173167,1706878241279,-500.0,0.00027397,2]
[313173168,1706878241288,-266.85975713,0.00027397,2]
[313173169,1706878241301,-233.14024287,0.00027397,2]
[313173170,1706878241310,-500.0,0.00027397,2]
[313173172,1706878241319,-1237.21465868,0.00027397,2]
[313173173,1706878241330,-4176.86534132,0.00027397,2]
[313173174,1706878241340,-508.54,0.00027397,2]
[313173176,1706878241349,-1000.0,0.00027397,2]
[313173178,1706878241358,-500.0,0.00027397,2]
[313173180,1706878241367,-500.0,0.00027397,2]
[313173182,1706878241376,-500.0,0.00027397,2]
[313173184,1706878241385,-500.0,0.00027397,2]
[313173186,1706878241395,-253.12630174,0.00027397,2]
[313173187,1706878241404,-500.0,0.00027397,2]
[313173188,1706878241415,-500.0,0.00027397,2]
[313173189,1706878241424,-500.0,0.00027397,2]
[313173190,1706878241434,-1558.2420861,0.00027397,2]
[313173191,1706878241447,-3988.9979139,0.00027397,2]
[313173192,1706878241457,-500.0,0.00027397,2]
[313173193,1706878241467,-500.0,0.00027397,2]
[313173194,1706878241477,-803.08,0.00027397,2]
[313173195,1706878241487,-500.0,0.00027397,2]
[313173196,1706878241497,-500.0,0.00027397,2]
[313173197,1706878241506,-500.0,0.00027397,2]
[313173198,1706878241517,-500.0,0.00027397,2]
[313173199,1706878241530,-236.76388925,0.00027397,2]
[313173200,1706878241540,-4312.48,0.00027397,2]
[313173201,1706878241550,-500.0,0.00027397,2]
[313173202,1706878241559,-1474.38,0.00027661,3]
[313173203,1706878241571,-500.0,0.00027671,2]
[313173204,1706878241580,-556.46,0.00027671,2]
[313173205,1706878241590,-500.0,0.00027671,2]
[313173206,1706878241600,-150.77639892,0.00027671,2]
[313173207,1706878241612,-349.22360108,0.00027671,2]
[313173208,1706878241621,-500.0,0.00027671,2]
[313173209,1706878241630,-500.0,0.00027671,2]
[313173210,1706878241640,-500.0,0.00027671,2]
[313173211,1706878241650,-151.0,0.00027671,2]
[313173212,1706878241659,-500.0,0.00027671,2]
[313173213,1706878241669,-457.69,0.00027671,2]
[313173214,1706878241678,-736.25,0.00027671,2]
[313173215,1706878241688,-500.0,0.00027671,2]
[313173216,1706878241700,-151.0,0.00027671,2]
[313173217,1706878241709,-151.0,0.00027671,2]
[313173218,1706878241719,-500.0,0.00027671,2]
[313173219,1706878241729,-500.0,0.00027671,2]
[313173220,1706878241739,-598.92,0.00027671,2]
[313173221,1706878241748,-500.0,0.00027671,2]
[313173222,1706878241757,-392.26,0.00027671,2]
[313173223,1706878241767,-151.0,0.00027671,2]
[313173224,1706878241776,-322.66,0.00027671,2]
[313173225,1706878241786,-207.385435,0.00027671,2]
[313173226,1706878241795,-189.06606237,0.00027671,2]
[313173252,1706878243017,-500.0,0.00027397,2]
[313173253,1706878243026,-18.31937263,0.00027671,2]
[313173254,1706878243036,-519.98,0.00027671,2]
[313173255,1706878243138,-749.59,0.00027671,2]
[313173256,1706878243149,-500.0,0.00027671,2]
[313173257,1706878243159,-500.0,0.00027671,2]
[313173258,1706878243168,-74.66423524,0.00027671,2]
[313173259,1706878243180,-425.33576476,0.00027671,2]
[313173260,1706878243190,-500.0,0.00027671,2]
[313173261,1706878243199,-761.07,0.00027671,2]
[313173262,1706878243208,-219.612116,0.00027671,2]
[313173263,1706878243217,-189.86,0.00027671,2]
[313173264,1706878243226,-151.0,0.00027671,2]
[313173265,1706878243236,-171.79,0.00027671,2]
[313173266,1706878243245,-500.0,0.00027671,2]
[313173267,1706878243255,-500.0,0.00027671,2]
[313173268,1706878243267,-500.0,0.00027671,2]
[313173269,1706878243277,-1818.2372674,0.00027671,2]
[313173270,1706878243289,-610.6927326,0.00027671,2]
[313173271,1706878243299,-980.53,0.00027671,2]
[313173272,1706878243308,-500.0,0.00027671,2]
[313173273,1706878243317,-998.73,0.00027671,2]
[313173274,1706878243326,-500.0,0.00027671,2]
[313173275,1706878243336,-1056.19,0.00027671,2]
[313173276,1706878243345,-242.36,0.00027671,2]
[313173277,1706878243354,-500.0,0.00027671,2]
[313173278,1706878243363,-5414.08,0.00027671,2]
[313173279,1706878243372,-508.54,0.00027671,2]
[313173280,1706878243382,-1000.0,0.00027671,2]
[313173281,1706878243391,-500.0,0.00027671,2]
[313173282,1706878243400,-89.0908007,0.00027671,2]
[313173323,1706878463631,1736.781414,0.00021,2]
[313173324,1706878463654,72.04532554,0.00021,2]
[313173325,1706878485088,300.0,0.00021,2]
[313173326,1706878488442,1627.95467446,0.00021,2]
[313173327,1706878488466,2000.0,0.00021,2]
[313173334,1706878764329,151.01661183,0.00028675,30]
[313173363,1706879425104,6000.0,0.00029,30]
[313173471,1706879438371,-1933.47332083,0.0002092,2]
[313173473,1706879438380,-323.68814175,0.0002092,2]
[313173475,1706879438390,-523.0723444,0.00020921,2]
[313173477,1706879438398,-130.00441768,0.00020922,2]
[313173480,1706879438425,-134.14500795,0.00020922,2]
[313173482,1706879438435,-1119.3538091,0.00020922,2]
[313173509,1706879443465,-159.09002618,0.00020919,2]
[313173510,1706879443474,-3703.142095,0.00020922,2]
[313173511,1706879443484,-155.02325349,0.00020923,2]
[313173512,1706879443494,-1017.27536011,0.00020923,2]
[313173513,1706879443503,-1269.27132386,0.00020923,2]
[313173514,1706879443513,-556.52643287,0.00020924,2]
[313173515,1706879443522,-4259.57768529,0.00022908,2]
[313173529,1706879446246,-155.02325349,0.00020919,4]
[313173530,1706879446254,-1141.53675275,0.00022908,2]
[313173531,1706879446266,-446.33105941,0.00022908,2]
[313173554,1706880350767,2715.47631265,0.00019966,5]
[313173557,1706880426027,1357.50974369,0.00019966,5]
[313173559,1706880442006,1357.50974369,0.00019966,5]
[313173560,1706880458012,1357.50974369,0.00019966,5]
[313173562,1706880476016,1357.50974369,0.00019966,5]
[313173563,1706880490035,1357.50974369,0.00019966,5]
[313173564,1706880512029,444.77009179,0.00019966,5]
[313173565,1706880534026,683.76182902,0.00019966,5]
[313173571,1706880628781,2715.47631265,0.00019894,5]
[313173577,1706880632033,887.66857818,0.00019966,5]
[313173578,1706880632063,468.591475,0.00019966,5]
[313173600,1706880632364,-264.14942563,0.00019894,2]
[313173601,1706880632374,-155.02790502,0.00019894,3]
[313173603,1706880632384,-1244.61449288,0.00019895,2]
[313173605,1706880632394,-1017.27536011,0.00019896,2]
[313173607,1706880632403,-556.52643287,0.00019896,2]
[313173609,1706880632412,-1933.47332083,0.00019896,2]
[313173611,1706880632421,-3941.23406722,0.00019897,2]
[313173613,1706880632433,-881.26183688,0.00019897,2]
[313173615,1706880632442,-166.07172986,0.000199,2]
[313173617,1706880632451,-958.81,0.00019956,3]
[313173619,1706880632461,-1012.42675506,0.00019966,2]
[313173621,1706880632470,-621.90621018,0.00019966,2]
[313173623,1706880632480,-19794.1585799,0.00019966,2]
[313173625,1706880632489,-28484.39687741,0.00019966,2]